bitfinex/quotes_BTCUSD_20240729
["timestamp","ask_amount","ask_price","bid_price","bid_amount"]
[1722278054997,0.445149,67393.0,67392.0,0.0763]
[1722278055212,0.741915,67393.0,67392.0,0.0763]
[1722278055540,0.741915,67393.0,67383.0,0.017]
[1722278055541,0.148392,67389.0,67388.0,0.07154355]
[1722278055671,0.445176,67389.0,67388.0,0.07154355]
[1722278055870,0.148398,67386.0,67383.0,0.012]
[1722278056076,0.148401,67385.0,67383.0,0.006]
[1722278056286,0.296785,67389.0,67383.0,0.006]
[1722278056287,0.148398,67386.0,67383.0,0.006]
[1722278056492,0.296785,67389.0,67383.0,0.006]
[1722278056731,0.1484,67386.0,67383.0,0.006]
[1722278056906,0.148399,67386.0,67383.0,0.006]
[1722278057616,0.296792,67388.0,67383.0,0.006]
[1722278057617,0.296792,67388.0,67384.0,0.01538435]
[1722278057837,0.445186,67388.0,67387.0,0.07154355]
[1722278057993,0.14839,67390.0,67387.0,0.07154355]
[1722278058187,0.148392,67389.0,67387.0,0.07154355]
[1722278058392,0.148292,67389.0,67387.0,0.07154355]
[1722278058695,0.296762,67394.0,67387.0,0.08254355]
[1722278058696,0.14839,67390.0,67387.0,0.08254355]
[1722278059097,0.148391,67390.0,67387.0,0.08254355]
[1722278059296,0.30478247,67394.0,67387.0,0.09159791]
[1722278059546,0.148384,67393.0,67387.0,0.09159791]
[1722278059878,0.148391,67390.0,67387.0,0.08159791]
[1722278060086,0.148387,67391.0,67387.0,0.08159791]
[1722278060264,0.00802047,67394.0,67388.0,0.00296767]
[1722278060435,0.148375,67397.0,67389.0,0.03007656]
[1722278061046,0.296736,67400.0,67389.0,0.03007656]
[1722278061047,0.148368,67400.0,67389.0,0.03007656]
[1722278061208,0.148368,67400.0,67394.0,0.07154355]
[1722278061209,0.15656452,67400.0,67394.0,0.07154355]
[1722278061404,0.14837,67399.0,67394.0,0.07154355]
[1722278061606,0.296721,67404.0,67394.0,0.07154355]
[1722278061811,0.148368,67400.0,67394.0,0.07154355]
[1722278062029,0.296723,67403.0,67394.0,0.07154355]
[1722278062366,0.00809719,67404.0,67402.0,0.07154355]
[1722278062596,0.296706,67407.0,67402.0,0.07154355]
[1722278062917,0.00794537,67410.0,67402.0,0.07154355]
[1722278063083,0.148356,67405.0,67402.0,0.07154355]
[1722278063284,0.296702,67408.0,67402.0,0.0956863]
[1722278063490,0.296691,67411.0,67402.0,0.0956863]
[1722278063491,0.296691,67410.0,67402.0,0.0956863]
[1722278063691,0.1398,67420.0,67403.0,0.2162]
[1722278063692,0.296676,67414.0,67403.0,0.2162]
[1722278063833,0.148348,67409.0,67403.0,0.2162]
[1722278064041,0.1398,67420.0,67404.0,0.00296689]
[1722278064350,0.148345,67411.0,67404.0,0.03203793]
[1722278064554,0.148345,67410.0,67404.0,0.03203793]
[1722278064962,0.148344,67411.0,67404.0,0.03203793]
[1722278065386,0.17162038,67410.0,67404.0,0.03203793]
[1722278065595,0.02327438,67410.0,67404.0,0.03203793]
[1722278065973,0.02327438,67410.0,67409.0,0.51609155]
[1722278066225,0.296599,67431.0,67409.0,0.67604294]
[1722278066514,0.44444115,67433.0,67428.0,0.0652]
[1722278066944,0.296564,67439.0,67428.0,0.0652]
[1722278067099,0.00807286,67436.0,67428.0,0.0652]
[1722278067299,0.078,67443.0,67428.0,0.0652]
[1722278067511,0.148287,67437.0,67429.0,0.00296563]
[1722278067772,0.148292,67435.0,67429.0,0.00296563]
[1722278068111,0.296574,67437.0,67429.0,0.00296563]
[1722278068315,0.148295,67433.0,67428.0,0.0652]
[1722278068680,0.296578,67436.0,67428.0,0.0652]
[1722278069023,0.148293,67434.0,67428.0,0.0652]
[1722278069420,0.02326606,67433.0,67428.0,0.0652]
[1722278069846,0.148288,67436.0,67428.0,0.0652]
[1722278070004,0.148292,67435.0,67428.0,0.0652]
[1722278070205,0.296565,67439.0,67428.0,0.07972]
[1722278070413,0.08613906,67443.0,67428.0,0.07972]
[1722278070622,0.148282,67439.0,67429.0,0.00296563]
[1722278070963,0.18613906,67443.0,67428.0,0.07972]
[1722278070964,0.00813906,67443.0,67428.0,0.07972]
[1722278071173,0.148272,67444.0,67433.0,0.07154355]
[1722278071368,0.296541,67445.0,67434.0,0.00296544]
[1722278071595,0.148267,67446.0,67434.0,0.21916544]
[1722278071795,0.360496,67455.0,67434.0,0.21916544]
[1722278071796,0.064,67455.0,67434.0,0.21916544]
[1722278072120,0.296557,67441.0,67433.0,0.07154355]
[1722278072416,0.14828,67440.0,67433.0,0.07154355]
[1722278072786,0.14309939,67451.0,67433.0,0.07154355]
[1722278073032,0.148275,67442.0,67433.0,0.07154355]
[1722278073191,0.02326314,67439.0,67433.0,0.07154355]
[1722278073413,0.148283,67439.0,67430.0,0.00296537]
[1722278073588,0.1,67450.0,67428.0,0.0832]
[1722278073589,0.0815,67449.0,67428.0,0.0832]
[1722278073788,0.02326301,67438.0,67428.0,0.0832]
[1722278074020,0.02326301,67438.0,67428.0,0.0792]
[1722278074217,0.148291,67435.0,67428.0,0.0792]
[1722278074575,0.296576,67437.0,67428.0,0.0792]
[1722278074576,0.148301,67431.0,67428.0,0.0792]
[1722278074681,0.148293,67434.0,67428.0,0.0792]
[1722278074884,0.02326301,67438.0,67433.0,0.004]
[1722278075093,0.148284,67438.0,67428.0,0.0792]
[1722278075298,0.061,67446.0,67428.0,0.1099516]
[1722278075299,0.02326418,67437.0,67428.0,0.1099516]
[1722278075559,0.02326418,67437.0,67428.0,0.1119516]
[1722278075752,0.17155118,67437.0,67428.0,0.1119516]
[1722278075993,0.148288,67436.0,67428.0,0.1099516]
[1722278076383,0.02326418,67437.0,67429.0,0.07154355]
[1722278076793,0.148286,67437.0,67429.0,0.07154355]
[1722278076989,0.148289,67436.0,67429.0,0.07154355]
[1722278078638,0.148289,67436.0,67428.0,0.0792]
[1722278078791,0.148289,67436.0,67428.0,0.0652]
[1722278079517,0.148287,67437.0,67428.0,0.10134]
[1722278080072,0.297405,67439.0,67428.0,0.10134]
[1722278080073,0.02326387,67435.0,67428.0,0.10134]
[1722278080830,0.148288,67437.0,67428.0,0.10134]
[1722278081240,0.148289,67436.0,67428.0,0.0652]
[1722278081683,0.29657,67438.0,67428.0,0.0652]
[1722278081884,0.148289,67436.0,67428.0,0.0652]
[1722278082300,0.00871035,67439.0,67428.0,0.0652]
[1722278082465,0.148291,67435.0,67428.0,0.0652]
[1722278082882,0.296573,67437.0,67428.0,0.0652]
[1722278083046,0.148289,67436.0,67428.0,0.0652]
[1722278083442,0.00871035,67439.0,67428.0,0.0652]
[1722278083740,0.148287,67437.0,67429.0,0.014]
[1722278084012,0.17155083,67437.0,67429.0,0.014]
[1722278084176,0.296582,67435.0,67428.0,0.0652]
[1722278084383,0.148293,67434.0,67428.0,0.0652]
[1722278084585,0.148293,67434.0,67428.0,0.0792]
[1722278084786,0.148296,67433.0,67428.0,0.0792]
[1722278084990,0.444912,67429.0,67428.0,0.014]
[1722278085190,0.74152,67429.0,67428.0,0.014]
[1722278085651,0.296613,67428.0,67417.0,0.0765]
[1722278085812,0.442599,67431.0,67417.0,0.0765]
[1722278085813,0.296604,67430.0,67417.0,0.0765]
[1722278086010,0.148315,67424.0,67417.0,0.0765]
[1722278086236,0.146,67431.0,67417.0,0.0765]
[1722278086237,0.148311,67426.0,67417.0,0.0765]
[1722278086439,0.148309,67427.0,67417.0,0.09076]
[1722278086647,0.148313,67425.0,67417.0,0.09076]
[1722278086799,0.0832,67431.0,67417.0,0.09076]
[1722278086800,0.29662,67427.0,67417.0,0.0765]
[1722278087000,0.00078078,67424.0,67417.0,0.0765]
[1722278087203,0.14831,67427.0,67417.0,0.0765]
[1722278087429,0.296612,67429.0,67417.0,0.0765]
[1722278087631,0.00084,67439.0,67423.0,0.07154355]
[1722278087887,0.148298,67432.0,67423.0,0.09330445]
[1722278088012,0.148295,67433.0,67423.0,0.09330445]
[1722278088213,0.1483,67431.0,67423.0,0.09330445]
[1722278088421,0.296583,67435.0,67423.0,0.09330445]
[1722278088422,0.148293,67434.0,67430.0,0.07154355]
[1722278088624,0.148293,67434.0,67431.0,0.0661]
[1722278089417,0.02326538,67436.0,67431.0,0.0661]
[1722278089624,0.148291,67435.0,67431.0,0.0661]
[1722278089821,0.296569,67438.0,67431.0,0.0661]
[1722278090163,0.148291,67435.0,67431.0,0.0661]
[1722278090322,0.296577,67436.0,67431.0,0.0661]
[1722278090531,0.148293,67434.0,67431.0,0.0681]
[1722278090887,0.148297,67432.0,67431.0,0.002]
[1722278091494,0.741487,67432.0,67431.0,0.002]
[1722278092472,0.444892,67432.0,67431.0,0.002]
[1722278092860,0.148303,67430.0,67417.0,0.1401]
[1722278093056,0.148304,67429.0,67418.0,0.03599796]
[1722278093660,0.1483,67431.0,67418.0,0.03599796]
[1722278094099,0.296586,67434.0,67418.0,0.03599796]
[1722278094296,0.296579,67436.0,67418.0,0.03599796]
[1722278094297,0.1483,67431.0,67418.0,0.03599796]
[1722278094760,0.148302,67430.0,67418.0,0.03799796]
[1722278095477,0.1483,67431.0,67418.0,0.03799796]
[1722278095681,0.1483,67431.0,67419.0,0.04724254]
[1722278095935,0.148299,67432.0,67423.0,0.07154355]
[1722278096139,0.148287,67437.0,67424.0,0.14309939]
[1722278096338,0.148293,67434.0,67424.0,0.14309939]
[1722278096577,0.148293,67434.0,67424.0,0.16928794]
[1722278096752,0.14829,67436.0,67424.0,0.16928794]
[1722278096949,0.14829,67435.0,67424.0,0.16928794]
[1722278097159,0.15734006,67439.0,67424.0,0.16928794]
[1722278097335,0.02326488,67434.0,67424.0,0.16928794]
[1722278097531,0.00905606,67439.0,67424.0,0.16928794]
[1722278097737,0.02322011,67438.0,67424.0,0.16928794]
[1722278097933,0.02322011,67438.0,67424.0,0.18328794]
[1722278098133,0.02322011,67438.0,67425.0,0.05705195]
[1722278098338,0.02322011,67438.0,67426.0,0.0644]
[1722278098515,0.15733906,67439.0,67426.0,0.0644]
[1722278098718,0.02321918,67438.0,67426.0,0.0644]
[1722278098920,0.00084,67439.0,67430.0,0.07154355]
[1722278099122,0.00084,67439.0,67431.0,0.08356547]
[1722278099928,0.00084,67439.0,67431.0,0.23186447]
[1722278100129,0.00084,67439.0,67431.0,0.08356547]
[1722278100367,0.00084,67439.0,67432.0,0.14309939]
[1722278100552,0.00084,67439.0,67433.0,0.21565937]
[1722278100785,0.00084,67439.0,67433.0,0.36395537]
[1722278100968,0.0232621,67438.0,67437.0,0.21982955]
[1722278101169,0.0232621,67438.0,67437.0,0.70950194]
[1722278101344,0.00084,67439.0,67438.0,0.148284]
[1722278101554,0.00084,67439.0,67438.0,0.59427135]
[1722278101748,0.00084,67439.0,67438.0,0.47104055]
[1722278101948,0.00084,67439.0,67438.0,0.17447255]
[1722278102350,0.00084,67439.0,67438.0,0.02618855]
[1722278103693,0.00084,67439.0,67438.0,0.04018855]
[1722278104040,0.00084,67439.0,67438.0,0.05418855]
[1722278104676,0.02410015,67439.0,67438.0,0.028]
[1722278105685,0.17238215,67439.0,67438.0,0.028]
[1722278106175,0.02410015,67439.0,67438.0,0.028]
[1722278106455,0.02410015,67439.0,67438.0,0.014]
[1722278106831,0.02410015,67439.0,67438.0,0.028]
[1722278107396,0.02410015,67439.0,67438.0,0.014]
[1722278107601,0.02410015,67439.0,67429.0,0.04245645]
[1722278107803,0.02410015,67439.0,67428.0,0.212505]
[1722278107804,0.02410015,67439.0,67438.0,0.014]
[1722278110102,0.02510015,67439.0,67438.0,0.025]
[1722278110414,0.02410015,67439.0,67438.0,0.0313294]
[1722278110551,0.00084,67439.0,67438.0,0.0313294]
[1722278110753,0.00084,67439.0,67438.0,0.014]
[1722278111213,0.00084,67439.0,67433.0,0.148294]
[1722278111592,0.00084,67439.0,67434.0,0.29139139]
[1722278111718,0.00084,67439.0,67434.0,0.14309939]
[1722278113261,0.00184,67439.0,67438.0,0.002]
[1722278115184,0.02510015,67439.0,67438.0,0.002]
[1722278116153,0.08720015,67439.0,67438.0,0.002]
[1722278116794,0.02510015,67439.0,67438.0,0.002]
[1722278118798,0.02410015,67439.0,67438.0,0.29138339]
[1722278120185,0.02410015,67439.0,67438.0,1.17771939]
[1722278120386,0.02410015,67439.0,67438.0,1.23042939]
[1722278120590,0.00084,67439.0,67438.0,1.65021586]
[1722278121348,0.00084,67439.0,67438.0,1.75021586]
[1722278123637,0.02509743,67439.0,67438.0,1.62699739]
[1722278123842,0.02509743,67439.0,67438.0,1.75020662]
[1722278124045,0.02509743,67439.0,67438.0,1.62699739]
[1722278124456,0.02509743,67439.0,67438.0,1.7502069]
[1722278125124,0.00184,67439.0,67438.0,1.7502069]
[1722278126298,0.00084,67439.0,67438.0,1.7502069]
[1722278126628,0.00084,67439.0,67438.0,2.0467749]
[1722278127016,0.00084,67439.0,67438.0,2.04676742]
[1722278127879,0.00184,67439.0,67438.0,2.06076742]
[1722278128116,0.02509503,67439.0,67438.0,2.06076742]
[1722278128243,0.02409503,67439.0,67438.0,2.04676742]
[1722278128450,0.00836,67452.0,67451.0,1.330888]
[1722278128660,0.00836,67452.0,67451.0,1.63987842]
[1722278129038,0.00836,67452.0,67451.0,1.51667639]
[1722278129245,0.00836,67452.0,67451.0,1.63986868]
[1722278129794,0.00836,67452.0,67451.0,1.51667639]
[1722278130303,0.00836,67452.0,67451.0,1.63986807]
[1722278130508,0.00836,67452.0,67451.0,1.51667639]
[1722278131162,0.00836,67452.0,67451.0,1.41467639]
[1722278131363,0.00836,67452.0,67451.0,0.97706539]
[1722278131586,0.00836,67452.0,67451.0,0.24309939]
[1722278132232,0.00836,67452.0,67451.0,0.39135439]
[1722278132454,0.00836,67452.0,67451.0,0.24309939]
[1722278132684,0.00936,67452.0,67451.0,0.15709939]
[1722278132879,0.09176,67452.0,67451.0,0.17109939]
[1722278133078,0.09732727,67452.0,67451.0,0.17109939]
[1722278137365,0.09732727,67452.0,67451.0,0.028]
[1722278137906,0.24558027,67452.0,67451.0,0.028]
[1722278138115,0.83859427,67452.0,67451.0,0.014]
[1722278138355,1.01244282,67452.0,67451.0,0.014]
[1722278138574,0.60218727,67452.0,67451.0,0.028]
[1722278139058,0.60218727,67452.0,67451.0,0.014]
[1722278139260,0.148261,67449.0,67435.0,0.14829]
[1722278139498,0.0015542,67448.0,67436.0,0.14309939]
[1722278139649,0.00711612,67448.0,67436.0,0.14309939]
[1722278141285,0.148268,67446.0,67436.0,0.14309939]
[1722278141488,0.0015542,67445.0,67436.0,0.14309939]
[1722278141689,0.00711612,67445.0,67436.0,0.14309939]
[1722278141917,0.00711612,67445.0,67444.0,0.07154355]
[1722278141918,0.0015542,67445.0,67444.0,0.07154355]
[1722278142055,0.15086,67452.0,67443.0,0.414473]
[1722278142056,0.00554999,67444.0,67443.0,0.414473]
[1722278142255,0.09076,67452.0,67443.0,0.2162]
[1722278142474,0.09076,67452.0,67445.0,0.148267]
[1722278142683,0.09076,67452.0,67446.0,0.00296494]
[1722278143128,0.09076,67452.0,67443.0,0.2162]
[1722278143129,0.09076,67452.0,67443.0,0.1558]
[1722278143303,0.02325756,67451.0,67443.0,0.1558]
[1722278143503,0.02325756,67451.0,67444.0,0.14309939]
[1722278144041,0.0015542,67450.0,67437.0,0.364485]
[1722278144198,0.001,67448.0,67438.0,0.14309939]
[1722278144610,0.001,67448.0,67438.0,0.29138239]
[1722278145187,0.1404542,67447.0,67436.0,0.006]
[1722278145333,0.14828,67440.0,67436.0,0.006]
[1722278145561,0.14828,67440.0,67431.0,0.2162]
[1722278145562,0.148281,67440.0,67431.0,0.2162]
[1722278145779,0.0015542,67443.0,67432.0,0.14309939]
[1722278145780,0.1498282,67443.0,67432.0,0.14309939]
[1722278145930,0.0015542,67443.0,67432.0,0.14309939]
[1722278146130,0.02326061,67438.0,67432.0,0.14309939]
[1722278147740,0.02326061,67438.0,67437.0,0.07154355]
[1722278147954,0.02326061,67438.0,67437.0,0.57912894]
[1722278148390,0.02326061,67438.0,67437.0,0.87570194]
[1722278148843,0.02426061,67438.0,67437.0,0.87570194]
[1722278149018,0.02426061,67438.0,67437.0,1.00950194]
[1722278149220,0.02326061,67438.0,67437.0,1.78134794]
[1722278149433,0.02326061,67438.0,67437.0,2.00456723]
[1722278149631,0.02426061,67438.0,67437.0,2.01856723]
[1722278149826,0.02426061,67438.0,67437.0,1.66999423]
[1722278150039,0.02426061,67438.0,67437.0,1.11437768]
[1722278150283,0.02426061,67438.0,67437.0,1.06437768]
[1722278150429,0.02426061,67438.0,67437.0,0.94115839]
[1722278151005,0.02426061,67438.0,67437.0,0.92715839]
[1722278151213,0.02326061,67438.0,67437.0,0.92715839]
[1722278151408,0.02326061,67438.0,67437.0,1.38773139]
[1722278151815,0.02326061,67438.0,67437.0,1.51094771]
[1722278152890,0.02326061,67438.0,67437.0,1.51094358]
[1722278154127,0.02326061,67438.0,67437.0,1.80751658]
[1722278154264,0.02326061,67438.0,67437.0,2.27329958]
[1722278154463,0.00836,67452.0,67445.0,0.296534]
[1722278154784,0.00836,67452.0,67449.0,0.148259]
[1722278155104,0.00836,67452.0,67447.0,0.296528]
[1722278155105,0.00836,67452.0,67450.0,0.29135639]
[1722278155307,0.00836,67452.0,67450.0,0.14309939]
[1722278155482,0.00836,67452.0,67450.0,0.29135639]
[1722278155683,0.00836,67452.0,67451.0,0.148255]
[1722278155885,0.00836,67452.0,67451.0,0.29135439]
[1722278156067,0.00836,67452.0,67451.0,0.58786539]
[1722278156265,0.00836,67452.0,67451.0,0.14309939]
[1722278156739,0.00836,67452.0,67451.0,0.58786539]
[1722278156943,0.00836,67452.0,67451.0,0.93437639]
[1722278157150,0.00836,67452.0,67451.0,0.90737639]
[1722278157662,0.00836,67452.0,67451.0,0.31435439]
[1722278157866,0.03161514,67452.0,67451.0,0.31435439]
[1722278158052,0.00836,67452.0,67451.0,0.61086539]
[1722278158600,0.00836,67452.0,67451.0,0.31435439]
[1722278159421,0.00836,67452.0,67451.0,0.61086539]
[1722278159820,0.00836,67452.0,67451.0,0.31435439]
[1722278160258,0.00836,67452.0,67451.0,0.14309939]
[1722278160612,0.00836,67452.0,67451.0,0.29135439]
[1722278161033,0.00836,67452.0,67451.0,0.14309939]
[1722278161230,0.00836,67452.0,67451.0,0.15709939]
[1722278161434,0.03161561,67452.0,67451.0,0.15709939]
[1722278161646,0.00836,67452.0,67451.0,0.15709939]
[1722278161840,0.00836,67452.0,67451.0,0.30535439]
[1722278162121,0.00836,67452.0,67451.0,0.65186539]
[1722278162295,0.00836,67452.0,67429.0,0.04403818]
[1722278162296,0.346603,67430.0,67429.0,0.04403818]
[1722278162433,0.346603,67430.0,67405.0,0.44444115]
[1722278162434,0.002,67425.0,67405.0,0.44444115]
[1722278162641,0.1475,67429.0,67408.0,0.05]
[1722278162841,0.00553678,67424.0,67416.0,0.05]
[1722278163042,0.1455,67429.0,67416.0,0.05]
[1722278163340,0.1455,67429.0,67410.0,0.22005275]
[1722278163341,0.002,67421.0,67410.0,0.00883797]
[1722278163789,0.15392667,67420.0,67410.0,0.00883797]
[1722278164018,0.002,67419.0,67410.0,0.00883797]
[1722278164164,0.0779,67418.0,67410.0,0.00883797]
[1722278164369,0.08349675,67418.0,67410.0,0.00883797]
[1722278164578,0.08376809,67417.0,67410.0,0.00883797]
[1722278164781,0.148338,67414.0,67410.0,0.00883797]
[1722278165145,0.0055583,67413.0,67410.0,0.00883797]
[1722278165346,0.0055583,67413.0,67410.0,0.02283797]
[1722278165549,0.14834,67413.0,67410.0,0.02283797]
[1722278165754,0.0055479,67412.0,67410.0,0.02283797]
[1722278166083,0.148334,67416.0,67410.0,0.02283797]
[1722278166427,0.0605,67417.0,67410.0,0.02283797]
[1722278166627,0.00554829,67415.0,67410.0,0.02283797]
[1722278166930,0.0605,67417.0,67410.0,0.02283797]
[1722278166931,0.00554373,67416.0,67410.0,0.02283797]
[1722278167163,0.00554294,67414.0,67410.0,0.00883797]
[1722278167332,0.00554313,67415.0,67410.0,0.01383797]
[1722278167542,0.357163,67417.0,67410.0,0.01383797]
[1722278167543,0.00554352,67413.0,67410.0,0.005]
[1722278167692,0.001,67414.0,67410.0,0.005]
[1722278167693,0.15489301,67414.0,67410.0,0.005]
[1722278167900,0.00554273,67412.0,67401.0,0.05]
[1722278168108,0.148335,67415.0,67402.0,0.14309939]
[1722278168309,0.00554273,67411.0,67410.0,0.005]
[1722278168534,0.148337,67414.0,67410.0,0.005]
[1722278168700,0.00554313,67411.0,67410.0,0.005]
[1722278168894,0.001,67416.0,67403.0,0.1]
[1722278168895,0.296665,67416.0,67403.0,0.1]
[1722278169113,0.296665,67416.0,67403.0,0.24309939]
[1722278169114,0.00554313,67411.0,67403.0,0.24309939]
[1722278169427,0.00554352,67410.0,67403.0,0.24309939]
[1722278169637,0.296665,67416.0,67403.0,0.24309939]
[1722278169638,0.14834,67413.0,67403.0,0.24309939]
[1722278169839,0.00554352,67409.0,67403.0,0.24309939]
[1722278170189,0.00554352,67409.0,67367.0,0.04400239]
[1722278170190,1.335865,67372.0,67367.0,0.04400239]
[1722278170452,1.335865,67372.0,67364.0,0.009174]
[1722278170453,0.587788,67372.0,67364.0,0.009174]
[1722278170672,1.181506,67372.0,67364.0,0.009174]
[1722278170881,0.89018162,67372.0,67364.0,0.009174]
[1722278171579,0.89218162,67372.0,67364.0,0.009174]
[1722278171783,0.9154681,67372.0,67364.0,0.009174]
[1722278171981,0.9134681,67372.0,67364.0,0.009174]
[1722278172964,0.89018162,67372.0,67364.0,0.009174]
[1722278174223,1.389415,67365.0,67364.0,0.009174]
[1722278174369,1.53251439,67365.0,67364.0,0.009174]
[1722278174566,1.6386037,67365.0,67364.0,0.009174]
[1722278174997,1.6386037,67365.0,67361.0,0.009185]
[1722278174998,0.950345,67363.0,67361.0,0.009185]
[1722278175174,0.44548,67343.0,67342.0,0.009185]
[1722278175376,0.51038,67343.0,67342.0,0.009185]
[1722278175560,0.07095561,67343.0,67342.0,0.009185]
[1722278175762,0.00605561,67343.0,67342.0,0.009185]
[1722278176201,0.17784329,67343.0,67342.0,0.009185]
[1722278176552,0.02936395,67343.0,67342.0,0.009185]
[1722278177098,0.00606927,67343.0,67342.0,0.009185]
[1722278177298,0.0016,67349.0,67342.0,0.08072855]
[1722278177513,0.0016,67349.0,67343.0,0.00807286]
[1722278177754,0.00607147,67348.0,67343.0,0.00807286]
[1722278178157,0.00607147,67348.0,67342.0,0.009185]
[1722278179128,0.0016,67349.0,67342.0,0.157679]
[1722278179488,0.0016,67349.0,67345.0,0.148488]
[1722278179689,0.0016,67349.0,67344.0,0.07154355]
[1722278179894,0.0016,67349.0,67344.0,0.12154355]
[1722278180091,0.0026,67349.0,67345.0,0.04277256]
[1722278180290,0.0026,67349.0,67344.0,0.07154355]
[1722278180730,0.0026,67349.0,67344.0,0.22003355]
[1722278181232,0.02329259,67348.0,67345.0,0.148488]
[1722278181521,1e-08,67348.0,67347.0,0.792422]
[1722278181721,1e-08,67348.0,67347.0,1.35549039]
[1722278181926,0.0026,67349.0,67348.0,0.545447]
[1722278182224,0.0026,67349.0,67348.0,1.35547639]
[1722278182636,0.0016,67349.0,67348.0,1.35547639]
[1722278183638,0.0026,67349.0,67348.0,1.35547639]
[1722278184810,0.0026,67349.0,67348.0,1.75244139]
[1722278185044,0.44444115,67374.0,67366.0,0.1134]
[1722278185272,0.44444115,67374.0,67367.0,0.14309939]
[1722278185438,0.44444115,67374.0,67369.0,0.148434]
[1722278185640,0.0632,67381.0,67369.0,0.14309939]
[1722278185868,0.00572683,67380.0,67369.0,0.14309939]
[1722278186081,0.00572683,67380.0,67371.0,0.14843]
[1722278186280,0.00572683,67380.0,67372.0,0.148429]
[1722278186494,0.00572683,67380.0,67371.0,0.14843]
[1722278186744,0.002,67379.0,67369.0,0.14309939]
[1722278186946,0.002,67379.0,67369.0,0.29153439]
[1722278186947,0.00771764,67379.0,67369.0,0.29153439]
[1722278187150,0.002,67373.0,67361.0,0.148453]
[1722278187303,0.002,67373.0,67362.0,0.14309939]
[1722278187509,0.00570881,67372.0,67362.0,0.14309939]
[1722278188048,0.150427,67373.0,67359.0,0.148456]
[1722278188273,0.002,67375.0,67360.0,0.14309939]
[1722278188479,0.002,67375.0,67362.0,0.07154355]
[1722278188683,0.150414,67379.0,67364.0,0.296894]
[1722278188812,0.150414,67379.0,67365.0,0.148444]
[1722278188813,0.00570969,67374.0,67365.0,0.148444]
[1722278189012,0.002,67379.0,67364.0,0.148447]
[1722278189013,0.148417,67378.0,67364.0,0.148447]
[1722278189209,0.148417,67378.0,67364.0,0.143447]
[1722278189469,0.00572485,67377.0,67365.0,0.148444]
[1722278189592,0.001,67372.0,67365.0,0.29689]
[1722278189799,0.001,67372.0,67365.0,0.148444]
[1722278190354,0.001,67372.0,67362.0,0.13554355]
[1722278190657,0.001,67372.0,67364.0,0.148446]
[1722278191105,0.001,67372.0,67363.0,0.148448]
[1722278191479,0.0652,67381.0,67362.0,0.12154355]
[1722278191677,0.00572529,67380.0,67365.0,0.296889]
[1722278191977,0.00572529,67380.0,67377.0,0.07154355]
[1722278191978,0.001,67378.0,67377.0,0.07154355]
[1722278192423,0.00572532,67378.0,67377.0,0.51679555]
[1722278192593,0.0831,67382.0,67378.0,0.148415]
[1722278193003,0.0831,67382.0,67378.0,0.296832]
[1722278193142,0.0831,67382.0,67377.0,0.07154355]
[1722278193339,0.006,67380.0,67377.0,0.07154355]
[1722278193620,0.006,67380.0,67372.0,0.05]
[1722278193803,0.0831,67382.0,67372.0,0.34152839]
[1722278193944,0.0831,67382.0,67378.0,0.002]
[1722278194142,0.00579942,67381.0,67378.0,0.002]
[1722278194341,0.00579942,67381.0,67373.0,0.148427]
[1722278194342,0.02328228,67380.0,67373.0,0.148427]
[1722278194586,0.00579942,67381.0,67376.0,0.07154355]
[1722278194795,0.083,67382.0,67378.0,0.148415]
[1722278194964,0.083,67382.0,67377.0,0.148418]
[1722278195181,0.296739,67400.0,67376.0,0.36838055]
[1722278195182,0.0638,67395.0,67378.0,0.14309939]
[1722278195385,0.44444115,67393.0,67382.0,0.296814]
[1722278195598,0.00577973,67394.0,67383.0,0.07154355]
[1722278195794,0.00562475,67392.0,67387.0,0.296791]
[1722278195997,0.0638,67395.0,67389.0,0.148391]
[1722278196202,0.0638,67395.0,67388.0,0.296788]
[1722278196203,0.00819537,67398.0,67388.0,0.346788]
[1722278196380,0.0612,67401.0,67390.0,0.21993155]
[1722278196580,0.0612,67401.0,67390.0,0.34184355]
[1722278196800,0.0612,67401.0,67393.0,0.148382]
[1722278196999,0.00562211,67400.0,67394.0,0.14838]
[1722278197204,0.00562211,67400.0,67392.0,0.296768]
[1722278197205,0.0612,67401.0,67390.0,0.34184355]
[1722278197404,0.02327673,67400.0,67393.0,0.148382]
[1722278197751,0.0612,67401.0,67393.0,0.00296735]
[1722278197922,0.0812,67402.0,67397.0,0.21991755]
[1722278198122,0.00562628,67400.0,67397.0,0.148374]
[1722278198451,0.0812,67402.0,67397.0,0.148374]
[1722278198651,0.0812,67402.0,67394.0,0.148381]
[1722278198794,0.0812,67402.0,67394.0,0.14838]
[1722278198996,0.00563001,67401.0,67394.0,0.14838]
[1722278199216,0.0812,67402.0,67394.0,0.14838]
[1722278200043,0.002,67399.0,67393.0,0.001]
[1722278200240,0.002,67394.0,67393.0,0.001]
[1722278200445,0.00733022,67394.0,67393.0,0.001]
[1722278200648,0.00533022,67394.0,67393.0,0.001]
[1722278200944,0.0605,67397.0,67383.0,0.29681]
[1722278201144,0.00533436,67394.0,67384.0,0.06817734]
[1722278201384,0.00531636,67396.0,67384.0,0.21657934]
[1722278201593,0.208874,67397.0,67393.0,0.008]
[1722278201594,0.0605,67397.0,67393.0,0.008]
[1722278202153,0.00531548,67396.0,67393.0,0.008]
[1722278202483,0.00531548,67396.0,67394.0,0.14838]
[1722278202667,0.00531548,67396.0,67393.0,0.02306316]
[1722278202668,0.0812,67402.0,67395.0,0.07154355]
[1722278202872,0.0812,67402.0,67398.0,0.148371]
[1722278203293,0.0812,67402.0,67397.0,0.296748]
[1722278203515,0.0812,67402.0,67395.0,0.07154355]
[1722278203516,0.0812,67402.0,67398.0,0.148371]
[1722278203924,0.00531548,67401.0,67396.0,0.296751]
[1722278204124,0.02327443,67402.0,67401.0,0.296731]
[1722278204324,0.0818,67409.0,67397.0,0.41339939]
[1722278204526,0.0818,67409.0,67402.0,0.148362]
[1722278204683,0.0818,67409.0,67401.0,0.148364]
[1722278204889,0.00533359,67408.0,67401.0,0.148364]
[1722278205125,0.00533359,67408.0,67402.0,0.148363]